fUSD/lending_fUSD_20240408
["ID","MTS","AMOUNT","RATE_DAILY","PERIOD"]
[321844159,1712562111027,-500.0,0.00020821,2]
[321844160,1712562111051,-527.75226015,0.00020821,2]
[321844161,1712562111075,-500.0,0.00020821,2]
[321844162,1712562111097,-405.32181852,0.00020821,2]
[321844163,1712562111119,-316.72432002,0.00020821,2]
[321844164,1712562111139,-500.0,0.00020821,2]
[321844165,1712562111165,-500.0,0.00020821,2]
[321844166,1712562111186,-500.0,0.00020821,2]
[321844167,1712562111207,-500.0,0.00020821,2]
[321844168,1712562111228,-500.0,0.00020821,2]
[321844169,1712562111248,-625.01018864,0.00020821,2]
[321844170,1712562111271,-500.0,0.00020821,2]
[321844171,1712562111296,-500.0,0.00020821,2]
[321844172,1712562111322,-500.0,0.00020821,2]
[321844173,1712562111349,-500.0,0.00020821,2]
[321844174,1712562111374,-522.23,0.00020821,2]
[321844175,1712562111398,-500.0,0.00020821,2]
[321844176,1712562111420,-500.0,0.00020821,2]
[321844177,1712562111441,-500.0,0.00020821,2]
[321844178,1712562111463,-500.0,0.00020821,2]
[321844179,1712562111485,-500.0,0.00020821,2]
[321844180,1712562111507,-500.0,0.00020821,2]
[321844181,1712562111530,-500.0,0.00020821,2]
[321844182,1712562111554,-615.71,0.00020821,2]
[321844183,1712562111576,-500.0,0.00020821,2]
[321844184,1712562111597,-302.5569537,0.00020823,2]
[321844185,1712562111619,-210.873093,0.00020832,2]
[321844186,1712562111645,-500.0,0.00020832,2]
[321844187,1712562111668,-1214.15608939,0.00020833,2]
[321844188,1712562111691,-302.5569537,0.00020849,2]
[321844189,1712562111712,-1214.15608939,0.00020856,2]
[321844190,1712562111732,-159.93745301,0.0002089,2]
[321844191,1712562111756,-500.0,0.00020894,2]
[321844192,1712562111778,-500.0,0.00020897,2]
[321844193,1712562111801,-500.0,0.00020897,2]
[321844194,1712562111823,-500.0,0.00020897,2]
[321844195,1712562111847,-500.0,0.00020897,2]
[321844196,1712562111869,-500.0,0.00020897,2]
[321844197,1712562111893,-500.0,0.00020897,2]
[321844198,1712562111915,-500.0,0.00020897,2]
[321844199,1712562111938,-500.0,0.00020897,2]
[321844200,1712562111960,-500.0,0.00020897,2]
[321844201,1712562111981,-595.2,0.00020897,2]
[321844202,1712562112002,-500.0,0.00020897,2]
[321844203,1712562112023,-500.0,0.00020897,2]
[321844204,1712562112047,-500.0,0.00020897,2]
[321844205,1712562112068,-500.0,0.00020897,2]
[321844206,1712562112092,-500.0,0.00020897,2]
[321844207,1712562112112,-500.0,0.00020897,2]
[321844208,1712562112133,-500.0,0.00020897,2]
[321844209,1712562112155,-500.0,0.00020897,2]
[321844210,1712562112176,-500.0,0.00020897,2]
[321844211,1712562112196,-500.0,0.00020897,2]
[321844212,1712562112217,-500.0,0.00020897,2]
[321844213,1712562112238,-500.0,0.00020897,2]
[321844214,1712562112258,-508.03648086,0.00020897,2]
[321844215,1712562112279,-500.0,0.00020897,2]
[321844216,1712562112302,-500.0,0.00020897,2]
[321844217,1712562112322,-500.0,0.00020897,2]
[321844218,1712562112342,-500.0,0.00020897,2]
[321844219,1712562112364,-500.0,0.00020897,2]
[321844220,1712562112385,-568.92464463,0.00020897,2]
[321844221,1712562112407,-500.0,0.00020897,2]
[321844222,1712562112430,-500.0,0.00020897,2]
[321844223,1712562112450,-414.54,0.00020897,2]
[321844224,1712562112471,-500.0,0.00020897,2]
[321844225,1712562112492,-500.0,0.00020897,2]
[321844226,1712562112514,-500.0,0.00020897,2]
[321844227,1712562112538,-2760.65,0.00020897,2]
[321844228,1712562112562,-500.0,0.00020897,2]
[321844229,1712562112584,-500.0,0.00020897,2]
[321844230,1712562112605,-500.0,0.00020897,2]
[321844231,1712562112627,-500.0,0.00020897,2]
[321844232,1712562112649,-500.0,0.00020897,2]
[321844233,1712562112670,-589.4,0.00020897,2]
[321844234,1712562112691,-385.05,0.00020897,2]
[321844235,1712562112711,-500.0,0.00020898,2]
[321844236,1712562112731,-500.0,0.00020898,2]
[321844237,1712562112752,-179.44,0.00020898,2]
[321844238,1712562112773,-500.0,0.00020898,2]
[321844239,1712562112796,-500.0,0.00020898,2]
[321844240,1712562112817,-533.31388487,0.00020898,2]
[321844241,1712562112840,-500.0,0.00020898,2]
[321844242,1712562112861,-315.38412987,0.00020898,2]
[321844243,1712562112882,-525.14601777,0.00020898,2]
[321844244,1712562112903,-500.0,0.00020898,2]
[321844245,1712562112923,-500.0,0.00020898,2]
[321844246,1712562112943,-500.0,0.00020898,2]
[321844247,1712562112963,-500.0,0.00020898,2]
[321844248,1712562112983,-535.07266799,0.00020898,2]
[321844249,1712562113005,-500.0,0.00020898,2]
[321844250,1712562113024,-500.0,0.00020898,2]
[321844251,1712562113047,-500.0,0.00020898,2]
[321844252,1712562113067,-500.0,0.00020898,2]
[321844253,1712562113090,-532.124469,0.00020898,2]
[321844254,1712562113110,-540.94356009,0.00020898,2]
[321844255,1712562113131,-634.14255511,0.00020898,2]
[321844256,1712562113152,-500.0,0.00020898,2]
[321844257,1712562113176,-531.42004402,0.00020898,2]
[321844258,1712562113198,-519.66690269,0.00020898,2]
[321844259,1712562113220,-563.22373806,0.00020898,2]
[321844260,1712562113241,-500.0,0.00020898,2]
[321844261,1712562113264,-536.91348881,0.00020898,2]
[321844262,1712562113285,-500.0,0.00020898,2]
[321844263,1712562113308,-500.0,0.00020898,2]
[321844264,1712562113328,-500.0,0.00020898,2]
[321844265,1712562113348,-530.24080754,0.00020898,2]
[321844266,1712562113370,-500.0,0.00020898,2]
[321844267,1712562113390,-500.0,0.00020898,2]
[321844268,1712562113410,-1000.0,0.00020899,2]
[321844269,1712562113430,-500.0,0.00020899,2]
[321844270,1712562113451,-500.0,0.00020899,2]
[321844271,1712562113471,-500.0,0.00020899,2]
[321844272,1712562113492,-500.0,0.00020899,2]
[321844273,1712562113512,-500.0,0.00020899,2]
[321844274,1712562113534,-500.0,0.00020899,2]
[321844275,1712562113557,-500.0,0.00020899,2]
[321844276,1712562113577,-500.0,0.00020899,2]
[321844277,1712562113598,-500.0,0.00020899,2]
[321844278,1712562113618,-500.0,0.00020899,2]
[321844279,1712562113638,-203.71103966,0.00020899,2]
[321844280,1712562113659,-500.0,0.00020899,2]
[321844281,1712562113681,-500.0,0.00020899,2]
[321844282,1712562113702,-500.0,0.00020899,2]
[321844283,1712562113723,-500.0,0.00020899,2]
[321844284,1712562113745,-500.0,0.00020899,2]
[321844285,1712562113767,-528.17626209,0.00020899,2]
[321844286,1712562113790,-500.0,0.00020899,2]
[321844287,1712562113811,-306.01183854,0.00020899,2]
[321844288,1712562113832,-500.0,0.00020899,2]
[321844289,1712562113853,-500.0,0.00020899,2]
[321844290,1712562113874,-500.0,0.00020899,2]
[321844291,1712562114047,-500.0,0.00020899,2]
[321844292,1712562114073,-500.0,0.00020899,2]
[321844293,1712562114096,-500.0,0.00020899,2]
[321844294,1712562114124,-500.0,0.00020899,2]
[321844295,1712562114147,-500.0,0.00020899,2]
[321844296,1712562114170,-500.0,0.00020899,2]
[321844297,1712562114190,-500.0,0.00020899,2]
[321844298,1712562114211,-500.0,0.00020899,2]
[321844299,1712562114233,-500.0,0.00020899,2]
[321844300,1712562114255,-500.0,0.00020899,2]
[321844301,1712562114278,-500.0,0.00020899,2]
[321844302,1712562114307,-623.1,0.00020899,2]
[321844303,1712562114328,-500.0,0.00020899,2]
[321844304,1712562114351,-500.0,0.00020899,2]
[321844305,1712562114373,-500.0,0.00020899,2]
[321844306,1712562114395,-520.1506949,0.00020899,2]
[321844307,1712562114416,-500.0,0.00020899,2]
[321844308,1712562114437,-506.02816585,0.00020899,2]
[321844309,1712562114459,-500.0,0.00020899,2]
[321844310,1712562114479,-500.0,0.00020899,2]
[321844311,1712562114501,-500.0,0.00020899,2]
[321844312,1712562114523,-500.0,0.00020899,2]
[321844313,1712562114546,-500.0,0.00020899,2]
[321844314,1712562114568,-500.0,0.00020899,2]
[321844315,1712562114591,-500.0,0.00020899,2]
[321844316,1712562114613,-500.0,0.00020899,2]
[321844317,1712562114635,-525.97785665,0.00020899,2]
[321844318,1712562114658,-500.0,0.00020899,2]
[321844319,1712562114682,-500.0,0.00020899,2]
[321844320,1712562114706,-500.0,0.00020899,2]
[321844321,1712562114730,-500.0,0.00020899,2]
[321844323,1712562114753,-500.0,0.00020899,2]
[321844324,1712562114775,-500.0,0.00020899,2]
[321844325,1712562114801,-500.0,0.00020899,2]
[321844326,1712562114824,-500.0,0.00020899,2]
[321844327,1712562114847,-500.0,0.00020899,2]
[321844328,1712562114869,-562.6916726,0.00020899,2]
[321844329,1712562114890,-310.22684289,0.00020899,2]
[321844330,1712562114912,-500.0,0.00020899,2]
[321844331,1712562114934,-500.0,0.00020899,2]
[321844332,1712562114955,-500.0,0.00020899,2]
[321844333,1712562114977,-500.0,0.00020899,2]
[321844334,1712562114998,-500.0,0.00020899,2]
[321844335,1712562115019,-500.0,0.00020899,2]
[321844336,1712562115042,-500.0,0.00020899,2]
[321844337,1712562115064,-500.0,0.00020899,2]
[321844338,1712562115086,-500.0,0.00020899,2]
[321844339,1712562115107,-500.0,0.00020899,2]
[321844340,1712562115129,-500.0,0.00020899,2]
[321844341,1712562115150,-500.0,0.00020899,2]
[321844342,1712562115175,-504.67931472,0.00020899,2]
[321844343,1712562115200,-500.0,0.00020899,2]
[321844344,1712562115224,-500.0,0.00020899,2]
[321844345,1712562115248,-587.85,0.00020899,2]
[321844346,1712562115272,-500.0,0.00020899,2]
[321844347,1712562115302,-500.0,0.00020899,2]
[321844348,1712562115326,-500.0,0.00020899,2]
[321844349,1712562115350,-592.75231604,0.00020899,2]
[321844350,1712562115375,-500.0,0.00020899,2]
[321844351,1712562115399,-500.0,0.00020899,2]
[321844352,1712562115421,-500.0,0.00020899,2]
[321844353,1712562115444,-500.0,0.00020899,2]
[321844354,1712562115466,-500.0,0.00020899,2]
[321844355,1712562115488,-500.0,0.00020899,2]
[321844356,1712562115509,-2760.65,0.00020899,2]
[321844357,1712562115530,-500.0,0.00020899,2]
[321844358,1712562115556,-500.0,0.00020899,2]
[321844359,1712562115578,-513.30830533,0.00020899,2]
[321844360,1712562115599,-500.0,0.00020899,2]
[321844361,1712562115621,-554.21251797,0.00020899,2]
[321844362,1712562115642,-500.0,0.00020899,2]
[321844363,1712562115664,-500.0,0.00020899,2]
[321844364,1712562115686,-500.0,0.00020899,2]
[321844365,1712562115708,-567.35,0.00020899,2]
[321844366,1712562115730,-500.0,0.00020899,2]
[321844367,1712562115752,-500.0,0.00020899,2]
[321844368,1712562115774,-500.0,0.00020899,2]
[321844369,1712562115798,-500.0,0.00020899,2]
[321844370,1712562115819,-500.0,0.00020899,2]
[321844371,1712562115840,-500.0,0.00020899,2]
[321844372,1712562115862,-500.0,0.00020899,2]
[321844373,1712562115883,-500.0,0.00020899,2]
[321844374,1712562115904,-178.90389295,0.00020899,2]
[321844375,1712562115925,-500.0,0.00020899,2]
[321844376,1712562115947,-500.0,0.00020899,2]
[321844377,1712562115969,-500.0,0.00020899,2]
[321844378,1712562115993,-500.0,0.00020899,2]
[321844379,1712562116013,-500.0,0.00020899,2]
[321844380,1712562116034,-500.0,0.00020899,2]
[321844381,1712562116059,-500.0,0.00020899,2]
[321844382,1712562116083,-558.52,0.00020899,2]
[321844383,1712562116104,-500.0,0.00020899,2]
[321844384,1712562116127,-500.0,0.00020899,2]
[321844385,1712562116149,-500.0,0.00020899,2]
[321844386,1712562116173,-500.0,0.00020899,2]
[321844387,1712562116195,-500.0,0.00020899,2]
[321844388,1712562116216,-500.0,0.00020899,2]
[321844389,1712562116237,-500.0,0.00020899,2]
[321844390,1712562116260,-500.0,0.00020899,2]
[321844391,1712562116283,-500.0,0.00020899,2]
[321844392,1712562116308,-500.0,0.00020899,2]
[321844393,1712562116329,-500.0,0.00020899,2]
[321844394,1712562116350,-500.0,0.00020899,2]
[321844395,1712562116372,-500.0,0.00020899,2]
[321844396,1712562116394,-26931.11773412,0.000209,2]
[321844397,1712562116414,-500.0,0.000209,2]
[321844398,1712562116434,-18879.4456,0.000209,2]
[321844399,1712562116454,-7069.981919,0.000209,2]
[321844400,1712562116474,-7500.0,0.000209,2]
[321844401,1712562116495,-39944.8804,0.000209,2]
[321844402,1712562116551,-100000.0,0.000209,2]
[321844403,1712562116572,-40000.0,0.000209,2]
[321844404,1712562116591,-1429.1469,0.000209,2]
[321844405,1712562116612,-971.87843098,0.000209,2]
[321844406,1712562116632,-2095.24120307,0.000209,2]
[321844407,1712562116654,-2903.51764833,0.000209,2]
[321844408,1712562116675,-931.03803406,0.000209,2]
[321844409,1712562116696,-319.45672021,0.00020988,2]
[321844410,1712562116716,-159.93745301,0.0002099,2]
[321844411,1712562116737,-165.48,0.00020994,2]
[321844412,1712562116757,-500.0,0.00020994,2]
[321844413,1712562116779,-500.0,0.00020994,2]
[321844414,1712562116803,-500.0,0.00020994,2]
[321844415,1712562116824,-500.0,0.00020994,2]
[321844416,1712562116845,-500.0,0.00020994,2]
[321844417,1712562116867,-500.0,0.00020994,2]
[321844418,1712562116889,-500.0,0.00020994,2]
[321844419,1712562116911,-500.0,0.00020994,2]
[321844420,1712562116932,-617.4516147,0.00020994,2]
[321844421,1712562116953,-500.0,0.00020994,2]
[321844422,1712562116973,-500.0,0.00020994,2]
[321844423,1712562116994,-500.0,0.00020994,2]
[321844424,1712562117015,-500.0,0.00020994,2]
[321844425,1712562117037,-500.0,0.00020994,2]
[321844426,1712562117064,-500.0,0.00020994,2]
[321844427,1712562117091,-500.0,0.00020994,2]
[321844428,1712562117113,-508.99788708,0.00020994,2]
[321844429,1712562117135,-628.27,0.00020994,2]
[321844430,1712562117155,-500.0,0.00020994,2]
[321844431,1712562117178,-500.0,0.00020994,2]
[321844432,1712562117198,-500.0,0.00020994,2]
[321844433,1712562117219,-500.0,0.00020994,2]
[321844434,1712562117241,-500.0,0.00020994,2]
[321844435,1712562117264,-171.82243586,0.00020994,2]
[321844436,1712562117286,-533.43738913,0.00020994,2]
[321844437,1712562117315,-535.6996894,0.00020994,2]
[321844438,1712562117337,-500.0,0.00020994,2]
[321844439,1712562117359,-500.0,0.00020994,2]
[321844440,1712562117382,-500.0,0.00020994,2]
[321844441,1712562117403,-500.0,0.00020994,2]
[321844442,1712562117424,-500.0,0.00020994,2]
[321844443,1712562117444,-511.07965959,0.00020994,2]
[321844444,1712562117466,-500.0,0.00020994,2]
[321844445,1712562117488,-494.06173153,0.00020994,2]
[321844446,1712562117510,-269.248782,0.00020994,2]
[321844447,1712562117532,-500.0,0.00020994,2]
[321844448,1712562117558,-500.0,0.00020994,2]
[321844449,1712562117579,-466.39,0.00020994,2]
[321844450,1712562117602,-500.0,0.00020994,2]
[321844451,1712562117624,-500.0,0.00020994,2]
[321844452,1712562117646,-521.45474459,0.00020994,2]
[321844453,1712562117668,-500.0,0.00020994,2]
[321844454,1712562117690,-2760.65,0.00020994,2]
[321844455,1712562117712,-500.0,0.00020994,2]
[321844456,1712562117734,-2760.65,0.00020994,2]
[321844457,1712562117755,-500.0,0.00020994,2]
[321844458,1712562117778,-500.0,0.00020994,2]
[321844459,1712562117804,-500.0,0.00020994,2]
[321844460,1712562117827,-500.0,0.00020994,2]
[321844461,1712562117848,-500.0,0.00020994,2]
[321844462,1712562117870,-498.23,0.00020994,2]
[321844463,1712562117891,-567.66087612,0.00020994,2]
[321844464,1712562117912,-580.23806114,0.00020995,2]
[321844465,1712562117933,-500.0,0.00020995,2]
[321844466,1712562117953,-600.89012811,0.00020995,2]
[321844467,1712562117975,-500.0,0.00020995,2]
[321844468,1712562117997,-500.0,0.00020995,2]
[321844469,1712562118020,-580.09,0.00020995,2]
[321844470,1712562118043,-500.0,0.00020995,2]
[321844471,1712562118066,-500.0,0.00020995,2]
[321844472,1712562118091,-405.61909623,0.00020995,2]
[321844473,1712562118113,-440.6,0.00020995,2]
[321844474,1712562118134,-2760.65,0.00020995,2]
[321844475,1712562118155,-500.0,0.00020995,2]
[321844476,1712562118179,-500.0,0.00020995,2]
[321844477,1712562118201,-500.0,0.00020996,2]
[321844478,1712562118224,-500.0,0.00020996,2]
[321844479,1712562118247,-500.0,0.00020996,2]
[321844480,1712562118269,-261.54416179,0.00020997,2]
[321844481,1712562118295,-199.74361967,0.00020997,2]
[321844482,1712562118316,-299.76503838,0.00020997,2]
[321844483,1712562118338,-164.05123617,0.00020997,2]
[321844484,1712562118359,-155.09169272,0.00020997,2]
[321844485,1712562118380,-500.0,0.00020997,2]
[321844486,1712562118402,-500.0,0.00020997,2]
[321844487,1712562118424,-500.0,0.00020997,2]
[321844488,1712562118446,-500.0,0.00020997,2]
[321844489,1712562118468,-500.0,0.00020997,2]
[321844490,1712562118491,-500.0,0.00020997,2]
[321844491,1712562118513,-500.0,0.00020997,2]
[321844492,1712562118534,-324.1,0.00020997,2]
[321844493,1712562118562,-500.0,0.00020997,2]
[321844494,1712562118587,-500.0,0.00020997,2]
[321844495,1712562118610,-500.0,0.00020997,2]
[321844496,1712562118633,-500.0,0.00020997,2]
[321844497,1712562118658,-500.0,0.00020997,2]
[321844498,1712562118683,-516.97,0.00020997,2]
[321844499,1712562118706,-500.0,0.00020997,2]
[321844500,1712562118729,-500.0,0.00020997,2]
[321844501,1712562118757,-500.0,0.00020997,2]
[321844502,1712562118780,-500.0,0.00020997,2]
[321844503,1712562118807,-500.0,0.00020997,2]
[321844504,1712562118830,-500.0,0.00020997,2]
[321844505,1712562118853,-500.0,0.00020997,2]
[321844506,1712562118876,-500.0,0.00020997,2]
[321844507,1712562118900,-500.0,0.00020997,2]
[321844508,1712562118923,-500.0,0.00020997,2]
[321844509,1712562118948,-500.0,0.00020997,2]
[321844510,1712562118970,-500.0,0.00020997,2]
[321844511,1712562118992,-500.0,0.00020997,2]
[321844512,1712562119016,-500.0,0.00020997,2]
[321844513,1712562119038,-500.0,0.00020997,2]
[321844514,1712562119062,-500.0,0.00020997,2]
[321844515,1712562119085,-1026.53382845,0.00020998,2]
[321844516,1712562119110,-166.88650538,0.00020998,2]
[321844517,1712562119131,-682.253116,0.00020998,2]
[321844518,1712562119152,-373.08030408,0.00020998,2]
[321844519,1712562119174,-155.72729125,0.00020998,2]
[321844520,1712562119195,-263.03757,0.00020998,2]
[321844521,1712562119218,-500.0,0.00020998,2]
[321844522,1712562119239,-500.0,0.00020998,2]
[321844523,1712562119262,-260.82,0.00020998,2]
[321844524,1712562119285,-599.73693163,0.00020998,2]
[321844525,1712562119307,-229.66414078,0.00020998,2]
[321844526,1712562119330,-279.63999998,0.00020998,2]
[321844527,1712562119352,-221.56306543,0.00020998,2]
[321844528,1712562119376,-382.6502619,0.00020998,2]
[321844529,1712562119399,-260.39224704,0.00020998,2]
[321844530,1712562119422,-363.38175565,0.00020998,2]
[321844531,1712562119444,-155.319273,0.00020998,2]
[321844532,1712562119467,-736.42959233,0.00020998,2]
[321844533,1712562119489,-155.0,0.00020998,2]
[321844534,1712562119512,-156.6707584,0.00020998,2]
[321844535,1712562119534,-158.29475218,0.00020998,2]
[321844536,1712562119556,-180.04511749,0.00020998,2]
[321844537,1712562119577,-155.3135666,0.00020998,2]
[321844538,1712562119600,-155.0,0.00020998,2]
[321844539,1712562119623,-500.0,0.00020998,2]
[321844540,1712562119646,-500.0,0.00020998,2]
[321844541,1712562119669,-500.0,0.00020998,2]
[321844542,1712562119696,-159.23485486,0.00020998,2]
[321844543,1712562119718,-398.38,0.00020998,2]
[321844544,1712562119741,-273.1033126,0.00020998,2]
[321844545,1712562119764,-155.88461655,0.00020998,2]
[321844546,1712562119786,-155.0,0.00020998,2]
[321844547,1712562119821,-1742.56076105,0.00020998,2]
[321844548,1712562119844,-2137.61813026,0.00020998,2]
[321844549,1712562119867,-8463.24949045,0.00020998,2]
[321844550,1712562119889,-280.23362983,0.00020998,2]
[321844551,1712562119912,-155.66091899,0.00020998,2]
[321844552,1712562119934,-235.24819881,0.00020998,2]
[321844553,1712562119955,-156.08876119,0.00020998,2]
[321844554,1712562119978,-346.07730604,0.00020998,2]
[321844555,1712562119999,-1613.2108283,0.00020998,2]
[321844556,1712562120021,-881.64955079,0.00020998,2]
[321844557,1712562120045,-715.03333913,0.00020998,2]
[321844558,1712562120068,-228.63705856,0.00020998,2]
[321844559,1712562120094,-156.21258437,0.00020998,2]
[321844560,1712562120117,-208.21993999,0.00020998,2]
[321844561,1712562120139,-282.57602801,0.00020998,2]
[321844562,1712562120161,-175.10303806,0.00020998,2]
[321844563,1712562120185,-231.89831233,0.00020998,2]
[321844564,1712562120207,-572.53204981,0.00020998,2]
[321844565,1712562120229,-500.0,0.00020998,2]
[321844566,1712562120250,-378.32,0.00020998,2]
[321844567,1712562120273,-392.77,0.00020998,2]
[321844568,1712562120295,-874.33121311,0.00020998,2]
[321844569,1712562120317,-500.0,0.00020998,2]
[321844570,1712562120341,-2760.65,0.00020998,2]
[321844571,1712562120364,-535.79,0.00020998,2]
[321844572,1712562120391,-2760.65,0.00020998,2]
[321844573,1712562120414,-2760.65,0.00020998,2]
[321844574,1712562120438,-2760.65,0.00020998,2]
[321844575,1712562120462,-2760.65,0.00020998,2]
[321844576,1712562120485,-500.0,0.00020998,2]
[321844577,1712562120509,-500.0,0.00020998,2]
[321844578,1712562120531,-500.0,0.00020998,2]
[321844579,1712562120553,-500.0,0.00020998,2]
[321844580,1712562120576,-307.25,0.00020998,2]
[321844581,1712562120600,-500.0,0.00020998,2]
[321844582,1712562120623,-500.0,0.00020998,2]
[321844583,1712562120648,-500.0,0.00020998,2]
[321844584,1712562120670,-500.0,0.00020998,2]
[321844585,1712562120693,-363.59431809,0.00020998,2]
[321844586,1712562120716,-417.2584527,0.00020998,2]
[321844587,1712562120737,-4583.3255295,0.00020999,2]
[321844588,1712562120759,-34189.29343514,0.00020999,2]
[321844589,1712562120782,-500.0,0.00020999,2]
[321844590,1712562120805,-500.0,0.00020999,2]
[321844591,1712562120827,-500.0,0.00020999,2]
[321844592,1712562120849,-500.0,0.00020999,2]
[321844593,1712562120871,-594.54253665,0.00020999,2]
[321844594,1712562120895,-500.0,0.00020999,2]
[321844595,1712562120917,-500.0,0.00020999,2]
[321844596,1712562120940,-303.07527336,0.00020999,2]
[321844597,1712562120963,-500.0,0.00020999,2]
[321844598,1712562120984,-500.0,0.00020999,2]
[321844599,1712562121006,-500.0,0.00020999,2]
[321844600,1712562121028,-500.0,0.00020999,2]
[321844601,1712562121061,-624.85,0.00020999,2]
[321844602,1712562121086,-500.0,0.00020999,2]
[321844603,1712562121108,-500.0,0.00020999,2]
[321844604,1712562121132,-500.0,0.00020999,2]
[321844605,1712562121155,-500.0,0.00020999,2]
[321844606,1712562121182,-500.0,0.00020999,2]
[321844607,1712562121205,-500.0,0.00020999,2]
[321844608,1712562121231,-500.0,0.00020999,2]
[321844609,1712562121255,-500.0,0.00020999,2]
[321844610,1712562121278,-500.0,0.00020999,2]
[321844611,1712562121301,-500.0,0.00020999,2]
[321844612,1712562121324,-500.0,0.00020999,2]
[321844613,1712562121347,-500.0,0.00020999,2]
[321844614,1712562121369,-500.0,0.00020999,2]
[321844615,1712562121392,-500.0,0.00020999,2]
[321844616,1712562121414,-575.63488774,0.00020999,2]
[321844617,1712562121436,-500.0,0.00020999,2]
[321844618,1712562121458,-500.0,0.00020999,2]
[321844619,1712562121481,-500.0,0.00020999,2]
[321844620,1712562121504,-500.0,0.00020999,2]
[321844621,1712562121525,-500.0,0.00020999,2]
[321844622,1712562121548,-500.0,0.00020999,2]
[321844623,1712562121571,-500.0,0.00020999,2]
[321844624,1712562121593,-500.0,0.00020999,2]
[321844625,1712562121815,-500.0,0.00020999,2]
[321844626,1712562121843,-624.72,0.00020999,2]
[321844627,1712562121867,-500.0,0.00020999,2]
[321844628,1712562121889,-500.0,0.00020999,2]
[321844629,1712562121913,-500.0,0.00020999,2]
[321844630,1712562121936,-500.0,0.00020999,2]
[321844631,1712562121959,-500.0,0.00020999,2]
[321844632,1712562121981,-500.0,0.00020999,2]
[321844633,1712562122004,-500.0,0.00020999,2]
[321844634,1712562122027,-474.64,0.00020999,2]
[321844635,1712562122054,-500.0,0.00020999,2]
[321844636,1712562122076,-500.0,0.00020999,2]
[321844637,1712562122098,-500.0,0.00020999,2]
[321844638,1712562122121,-500.0,0.00020999,2]
[321844639,1712562122146,-500.0,0.00020999,2]
[321844640,1712562122169,-500.0,0.00020999,2]
[321844641,1712562122191,-500.0,0.00020999,2]
[321844642,1712562122213,-436.33,0.00020999,2]
[321844643,1712562122236,-500.0,0.00020999,2]
[321844644,1712562122257,-500.0,0.00020999,2]
[321844645,1712562122279,-500.0,0.00020999,2]
[321844646,1712562122301,-500.0,0.00020999,2]
[321844647,1712562122323,-500.0,0.00020999,2]
[321844648,1712562122348,-500.0,0.00020999,2]
[321844649,1712562122372,-500.0,0.00020999,2]
[321844650,1712562122394,-500.0,0.00020999,2]
[321844651,1712562122415,-500.0,0.00020999,2]
[321844652,1712562122439,-500.0,0.00020999,2]
[321844653,1712562122466,-500.0,0.00020999,2]
[321844654,1712562122491,-500.0,0.00020999,2]
[321844655,1712562122515,-623.1,0.00020999,2]
[321844656,1712562122540,-623.1,0.00020999,2]
[321844657,1712562122564,-500.0,0.00020999,2]
[321844658,1712562122587,-623.1,0.00020999,2]
[321844659,1712562122609,-500.0,0.00020999,2]